Cogmind - Beta 16.1 @@@ ROGUE MODE // 2026.04.26 @ 03:46:22 Player: AngelSpirit Result: Destroyed by G-50 Soldier with Heavy Laser Performance ------------- Evolutions (2) 1000 Regions Visited (9) 1800 Robots Destroyed (176) 880 Value Destroyed (6905) 6905 Prototype IDs (36) 720 Alien Tech Used (0) 0 Bonus (1362) 1362 TOTAL SCORE: 12667 Bonus ------- High Alert Combat Kills 1070 Follower Combat Kills 173 Entered Garrisons 400 Aligned with FarCom 300 Friendly Fire -581 Cogmind --------- Core Integrity 0/550 Matter 300/300 Energy 280/280 System Corruption 6% Temperature Cool (9) Movement Rolling (160) Ox6 Location -8/Garrison Parts ------- > --- POWER (1) -------- Cooled Ion Engine > --- PROPULSION (3) --- Titanium Leg Titanium Leg Wheel > --- UTILITY (4) ------ Improved Heat Sink Improved Cooling System High-capacity Storage Unit Light Regenerative Plating > --- WEAPON (3) ------- Advanced Beam Rifle Gauss Rifle Gauss Rifle > --- INVENTORY (20) --- Light Angular Momentum Engine Fission Core VSS Leg Improved Heat Sink Matter Compressor (250) Improved Sensor Array Modified TNC 0b10 Alert Chip Improved Trap Extractor (4/6 Segregator) Advanced Beam Rifle Firepult Missile Launcher Heavy Pick Tiamat Bomb Trap EM Surge Trap EM Surge Trap Peak State ------------ > --- POWER ------------ Light Angular Momentum Engine > --- PROPULSION ------- Wheel Armored Huge Wheel > --- UTILITY ---------- Cryofiber Web Advanced Heat Sink Huge Storage Unit Hardened Medium Armor Plating > --- WEAPON ----------- Field Laser Heavy Particle Gun Magnetic Acceleration Cannon > --- INVENTORY -------- Reinforced Deuterium Engine Light Angular Momentum Engine Fission Core Carbon-fiber Leg Titanium Leg Titanium Leg Titanium Leg Improved Heat Sink High-capacity Storage Unit Matter Compressor Improved Sensor Array Improved Signal Interpreter IFF Parser Seismic Detector Modified TNC 0b10 Alert Chip Hardened Light Armor Plating Improved Trap Extractor Firepult Flak Cannon Missile Launcher Heavy Pick EM Surge Trap EM Surge Trap [Rating: 47] Favorites ----------- Power Ion Engine Engine Ion Engine Power Core Light Nuclear Core Propulsion Wheel Treads Armored Treads Leg Titanium Leg Wheel Wheel Hover Unit Aerolev Unit Utility Huge Storage Unit Device Cryofiber Web Storage Huge Storage Unit Processor Improved Signal Interpreter Protection Reactive Plating Weapon Beam Rifle Energy Gun Beam Rifle Energy Cannon Light EM Pulse Cannon Ballistic Gun Minigun Ballistic Cannon Light Cannon Launcher Missile Launcher Special Weapon Mining Laser Build | -11 -10 -10 -10 -9 -8 -8 -8 -8 -8 ------- Run | Yrd Mat Min Exi Min Mat Gar Mat Sto Gar Slots Evolved 4 | . . . . . 4 . . . . Power . | . . . . . . . . . . Propulsion 1 | . . . . . 1 . . . . Utility 2 | . . . . . 2 . . . . Weapon 1 | . . . . . 1 . . . . Parts Attached 97 | 7 15 1 1 1 13 23 5 17 14 Power 8 | 1 2 . . . . 3 . 2 . Engine 7 | 1 2 . . . . 3 . 1 . Core 1 | . . . . . . . . 1 . Reactor . | . . . . . . . . . . Propulsion 22 | 2 4 . . 1 2 3 1 5 4 Treads 4 | . 2 . . . 1 1 . . . Leg 3 | . . . . . . . . . 3 Wheel 14 | 2 2 . . 1 . 2 1 5 1 Hover 1 | . . . . . 1 . . . . Flight . | . . . . . . . . . . Utility 30 | 2 2 . . . 4 12 1 3 6 Device 14 | 1 . . . . 1 7 1 1 3 Storage 3 | 1 1 . . . . . . . 1 Processor 1 | . . . . . . . . 1 . Hackware . | . . . . . . . . . . Protection 12 | . 1 . . . 3 5 . 1 2 Artifact . | . . . . . . . . . . Weapon 37 | 2 7 1 1 . 7 5 3 7 4 Energy Gun 14 | 1 1 . . . 1 3 3 4 1 Energy Cannon 3 | . 1 . 1 . . . . 1 . Ballistic Gun 6 | 1 . . . . . . . 2 3 Ballistic Cannon 9 | . 3 . . . 4 2 . . . Launcher 4 | . 2 . . . 2 . . . . Special Weapon 1 | . . 1 . . . . . . . Impact Weapon . | . . . . . . . . . . Slashing Weapon . | . . . . . . . . . . Piercing Weapon . | . . . . . . . . . . Special Melee Weapon . | . . . . . . . . . . Unidentified Prototypes 9 | . . . . . 2 . 1 6 . Parts Lost 31 | . 6 . . . 3 8 2 5 7 Power 5 | . 2 . . . 1 1 . 1 . Propulsion 11 | . 2 . . . . 2 1 3 3 Utility 7 | . . . . . 2 2 . 1 2 Weapon 8 | . 2 . . . . 3 1 . 2 Highest Loss Streak 5 | . 5 . . . 2 5 1 1 3 To Critical Strikes . | . . . . . . . . . . Average Backups 18 | 1 10 15 23 24 22 20 21 21 15 Power 2 | . . . 2 3 3 2 2 3 2 Propulsion 4 | 1 3 4 7 7 5 5 4 3 1 Utility 7 | . 2 4 6 7 9 9 10 10 7 Weapon 4 | . 3 6 6 6 4 3 4 4 4 Tool/Special . | . . . . . . . . . . Unused Backups 24 | . 3 . 1 . 5 1 1 3 10 Power 4 | . . . . . . 1 . . 3 Propulsion 6 | . . . . . 3 . 1 1 1 Utility 6 | . . . . . 1 . . 1 4 Weapon 7 | . 3 . 1 . . . . 1 2 Tool/Special 1 | . . . . . 1 . . . . Average Slot Usage (%) 93 | . 98 100 99 100 94 88 85 94 98 Engine 9 | . 12 14 14 14 8 8 9 6 9 Treads 2 | . 2 . . . 9 3 . . . Leg 1 | . . . . . . . . . 14 Wheel 19 | . 25 28 28 28 18 14 14 22 12 Device 15 | . 13 13 14 14 10 16 18 17 14 Storage 10 | . 14 14 14 14 9 9 9 9 9 Processor 1 | . . . . . . . . 8 2 Protection 5 | . . . . . 13 9 8 . 9 Energy Gun 10 | . 3 . . . . 15 17 17 15 Energy Cannon 2 | . 4 12 10 14 1 . . . . Ballistic Gun 2 | . 3 . . . . . . 8 10 Ballistic Cannon 10 | . 17 14 14 14 24 9 9 . . Peak Build Rating 47 | 7 9 12 16 16 36 44 47 47 44 Average Rating 29 | 5 7 9 13 16 28 35 45 40 39 On Entrance 21 | . 7 9 11 16 16 30 44 46 40 Avg Prop Armor Cover (%) 8 | . . . . . 7 9 . . 9 Naked Turns . | . . . . . . . . . . Heaviest Build 125 | 15 94 93 95 95 125 124 113 113 104 Greatest Support 40 | 26 40 20 20 26 26 38 38 38 30 Greatest Overweight (x) 12 | . 5 4 4 4 4 12 4 9 7 Average Overweight (x) 3 | . 3 4 4 3 3 3 2 2 5 Largest Inventory Capacity 25 | 8 25 25 25 25 25 25 25 25 25 Average Capacity 24 | 7 24 25 25 25 25 25 25 25 21 Most Carried 25 | 7 13 22 25 25 25 25 25 25 25 Average Carried 20 | 2 10 15 23 25 23 22 24 24 19 Final Capacity 25 | 8 25 25 25 25 25 25 25 25 20 Final Carried 25 | 7 13 22 25 25 24 25 25 25 17 Class Distribution -------------------- 33% | Scavenger-Skirmisher 26% | Scavenger-Mutant 13% | Trapper-Skirmisher 7% | Tank 7% | Trapper-Tank 5% | Mutant Dominant Class ---------------- Scavenger-Mutant | -10/Materials Scavenger-Mutant | -10/Mines Scavenger-Mutant | -10/Exiles Scavenger-Mutant | -9/Mines Tank | -8/Materials Scavenger-Skirmisher | -8/Garrison Scavenger-Skirmisher | -8/Materials Trapper-Skirmisher | -8/Storage Trapper-Tank | -8/Garrison Resources | -11 -10 -10 -10 -9 -8 -8 -8 -8 -8 ----------- Run | Yrd Mat Min Exi Min Mat Gar Mat Sto Gar Matter Collected 4630 | 271 535 126 . 24 640 1388 574 631 441 Remotely . | . . . . . . . . . . Salvage Created 5848 | 98 619 134 . 74 719 1087 1058 1323 736 Parts 356 | 14 46 4 . 5 54 68 54 69 42 Haulers Intercepted 14 | . 2 . . . 2 . 4 6 . Recyclers Shooed 1 | . . . . . 1 . . . . Parts Field Recycled . | . . . . . . . . . . Retrieved Matter . | . . . . . . . . . . Parts Self-Destructed . | . . . . . . . . . . Prevented . | . . . . . . . . . . Parts Restored . | . . . . . . . . . . Kills | -11 -10 -10 -10 -9 -8 -8 -8 -8 -8 ------- Run | Yrd Mat Min Exi Min Mat Gar Mat Sto Gar Combat Hostiles Destroyed 119 | . 17 1 . . 20 35 15 14 17 Guns 42 | . 4 . . . . 3 4 14 17 Cannons 45 | . 6 . . . 13 18 8 . . AOE 30 | . 7 1 . . 7 12 3 . . Classes Destroyed 16 | 1 8 . . . 2 3 1 . 1 Worker 4 | . 1 . . . . . . 3 . Builder 6 | . 2 1 . . 1 . 1 1 . Tunneler 7 | 4 . . . . 2 . . 1 . Hauler 14 | . 2 . . . 2 . 4 6 . Recycler 8 | . 2 2 . 1 1 . 2 . . Mechanic 1 | . . . . . . . 1 . . Operator 4 | . 2 . . . 1 . 1 . . Watcher 12 | . 3 . . . 3 . 4 2 . Swarmer 36 | . 9 1 . . 4 16 3 . 3 Grunt 44 | . 8 . . . 10 5 8 9 4 Brawler 3 | . . . . . 1 1 . . 1 Duelist 1 | . . . . . . . . . 1 Sentry 20 | . . . . . 5 8 2 5 . Specialist 6 | . . . . . . 2 . . 4 Hunter 5 | . . . . . . 2 2 . 1 Programmer 4 | . . . . . . 1 . . 3 Best Kill Streak 9 | 4 9 2 . 1 8 8 6 5 5 Combat Bots Only 8 | . 7 1 . . 5 8 3 3 5 Max Kills in Single Turn 5 | 2 4 1 . 1 5 3 3 1 2 Gunslinging . | . . . . . . . . . . Exploded 3 | . 3 1 . . 3 3 3 . . Melee . | . . . . . . . . . . Uniques/NPCs Destroyed 1 | . . . . . . . . 1 . 01-MTF (-8/Storage) Combat | -11 -10 -10 -10 -9 -8 -8 -8 -8 -8 -------- Run | Yrd Mat Min Exi Min Mat Gar Mat Sto Gar Hostile Shots Fired 609 | . 92 14 . . 101 186 55 37 124 Missed 177 | . 24 8 . . 30 60 17 9 29 Hits 432 | . 68 6 . . 71 126 38 28 95 Melee 6 | . . . . . 6 . . . . Projectile 426 | . 68 6 . . 65 126 38 28 95 Critical Strikes 11 | . . . . . 4 3 1 . 3 Part Disruptions 1 | . . . . . . . . . 1 Damage Taken 5960 | . 696 118 . . 1080 1443 683 526 1414 Core 737 | . 139 31 . . 176 150 51 7 183 Absorbed by Shields 104 | . . . . . 104 . . . . Ignored by Resistances 249 | . . . . . 13 236 . . . Regen/Repaired (Parts) 156 | . . . . . . . 93 40 23 Core Remaining (%) 66 | 100 . . . 32 . . . . . Volleys Fired 460 | 5 53 18 . 1 75 136 60 54 58 Largest 3 | 2 2 2 . 2 3 3 3 3 3 Hottest 163 | 60 86 100 . 93 117 152 163 147 147 Shots Fired 930 | 10 90 27 . 2 132 213 159 152 145 Gun 518 | 10 34 . . . . 79 99 151 145 Cannon 383 | . 49 18 . 2 126 129 58 1 . Launcher 20 | . 7 . . . 6 5 2 . . Special 9 | . . 9 . . . . . . . Kinetic 469 | 5 60 9 . 1 118 119 58 51 48 Thermal 396 | . 11 9 . . . 79 99 101 97 Explosive 20 | . 7 . . . 6 5 2 . . Electromagnetic 45 | 5 12 9 . 1 8 10 . . . Robot Hit Streak 18 | 3 11 2 . 1 18 18 7 9 9 Robot Miss Streak 7 | 1 3 2 . . 7 4 5 4 4 Penetration Max . | . . . . . . . . . . Secondary Targets 8 | . . . . . . . . 1 7 Max Gunslinging Chain 1 | . . . . . . . . 1 1 Shots Hit Robots 479 | 6 48 8 . 1 78 98 93 82 65 Core Hits 286 | 4 32 4 . 1 74 62 42 38 29 Critical Kills . | . . . . . . . . . . Critical Parts Destroyed . | . . . . . . . . . . Critical Strikes 28 | . 1 . . . 5 13 4 5 . Burn 17 | . . . . . . 9 3 5 . Blast 11 | . 1 . . . 5 4 1 . . Melee Attacks . | . . . . . . . . . . Impact . | . . . . . . . . . . Slashing . | . . . . . . . . . . Piercing . | . . . . . . . . . . Sneak Attacks . | . . . . . . . . . . Combat Hostiles . | . . . . . . . . . . Follow-up Attacks . | . . . . . . . . . . Damage Inflicted 13158 | 87 1447 341 . 28 2777 3193 2366 1565 1354 Guns 5286 | 87 272 . . . . 858 1150 1565 1354 Cannons 4744 | . 512 255 . 28 1947 1069 933 . . Explosions 3128 | . 663 86 . . 830 1266 283 . . Melee . | . . . . . . . . . . Ramming . | . . . . . . . . . . Kinetic 5337 | 38 563 115 . . 1818 921 933 421 528 Thermal 4324 | . 77 86 . . . 967 1224 1144 826 Explosive 2781 | . 663 . . . 796 1157 165 . . Electromagnetic 716 | 49 144 140 . 28 163 148 44 . . Impact . | . . . . . . . . . . Slashing . | . . . . . . . . . . Piercing . | . . . . . . . . . . Highest Corruption 6 | . . . . . . . . . 6 Average Corruption 5 | . . . . . . . . . 5 Corruption Purged . | . . . . . . . . . . Corruption Blocked . | . . . . . . . . . . Effects 20 | . . . . . . . . . 20 Message Errors 5 | . . . . . . . . . 5 Matter Fused 7 | . . . . . . . . . 7 Heat Flow Errors 3 | . . . . . . . . . 3 Energy Discharges 1 | . . . . . . . . . 1 Data Loss (minor) 3 | . . . . . . . . . 3 Alerts 1 | . . . . . . . . . 1 Overload Shots . | . . . . . . . . . . Overflow Damage 258 | . 66 13 . . 25 87 67 . . Projectiles 86 | . 10 13 . . 12 . 51 . . Explosions 172 | . 56 . . . 13 87 16 . . Melee . | . . . . . . . . . . Knockbacks 38 | . 4 2 . . 19 9 4 . . Impact . | . . . . . . . . . . Kinetic 35 | . 4 2 . . 17 9 3 . . Secondary 3 | . . . . . 2 . 1 . . Self-Inflicted Damage 160 | . 30 . . . . 56 74 . . Shots 4 | . 1 . . . . 1 2 . . Rammed . | . . . . . . . . . . Targets Rammed . | . . . . . . . . . . Kicked . | . . . . . . . . . . Crushed . | . . . . . . . . . . Highest Temperature 523 | . 60 164 . 33 406 303 11 101 523 Average Temperature 87 | . 18 37 . 19 103 103 7 30 170 Received Heat Transfer 1809 | . 246 51 . . 504 378 234 189 207 Effects 7 | . . . . . 2 . . . 5 Energy Bleed 1 | . . . . . 1 . . . . Interference 4 | . . . . . 1 . . . 3 Matter Decay 1 | . . . . . . . . . 1 Short Circuit 1 | . . . . . . . . . 1 Siege Activations . | . . . . . . . . . . Martial Activations . | . . . . . . . . . . Shielding Activations . | . . . . . . . . . . Robots Disrupted . | . . . . . . . . . . Combat Hostiles . | . . . . . . . . . . Robots Corrupted 1 | . . . . . . 1 . . . Combat Hostiles 1 | . . . . . . 1 . . . Parts Fried 3 | . 1 . . . . . 1 1 . Impact Corruptions . | . . . . . . . . . . Robots Melted 2 | . . . . . . 2 . . . Combat Hostiles 1 | . . . . . . 1 . . . Parts Melted 18 | . . . . . . 9 2 3 4 Heat Transferred 10040 | . 175 200 . . . 2924 2690 2627 1424 Parts Sabotaged . | . . . . . . . . . . Parts Stolen . | . . . . . . . . . . Parts Stripped . | . . . . . . . . . . Power Chain Reactions 2 | . . 1 . . . 1 . . . Alert | -11 -10 -10 -10 -9 -8 -8 -8 -8 -8 ------- Run | Yrd Mat Min Exi Min Mat Gar Mat Sto Gar Maximum Alert Level 5 | . 1 . . . 2 5 4 2 2 Low Security (%) 27 | 100 15 100 . 100 71 . . 14 20 Level 1 21 | . 84 . . . 21 2 . 34 22 Level 2 20 | . . . . . 6 22 . 51 56 Level 3 16 | . . . . . . 25 86 . . Level 4 7 | . . . . . . 25 13 . . Level 5 5 | . . . . . . 23 . . . High Security . | . . . . . . . . . . Max Security . | . . . . . . . . . . Peak Influence 1927 | 15 365 163 . 5 420 1927 1149 630 596 Initial 939 | . . 125 . . . 269 939 479 37 Average 550 | 1 247 45 . . 147 1126 983 364 382 Influence Increases 5527 | 20 802 163 . 5 856 1758 673 601 649 Destroy 0b10 Robot/C 2520 | . 340 100 . . 400 720 300 280 380 Destroy 0b10 Robot/NC 290 | 20 60 15 . 5 50 10 65 65 . Destroy Leader 462 | . 90 20 . . 110 40 86 96 20 Allied During Kill 28 | . . 18 . . . 6 . . 4 Successful Hack 105 | . 49 . . . 18 . 19 19 . Select Force Hacks 150 | . 60 . . . 30 . . 60 . Disable Machine 495 | . 90 . . . 75 120 90 60 60 Anti-Garrison Action 900 | . . . . . . 800 . . 100 Destroy Structure 337 | . 68 10 . . 83 62 68 6 40 Partial Spotted 15 | . . . . . . . . 15 . Lose Combat Pursuer 225 | . 45 . . . 90 . 45 . 45 Influence Decreases 4931 | 20 479 486 . 5 442 245 1466 1677 111 Entered New Map 2007 | . . 198 . . . 145 988 655 21 Time Decay 2084 | 20 419 268 . 5 392 . 458 522 . Lost Part 310 | . 60 . . . 30 80 20 50 70 Lost Ally 80 | . . 20 . . 20 20 . . 20 Purge Threat 450 | . . . . . . . . 450 . Squads Dispatched 22 | . 5 . . . 5 . 4 8 . Investigation 11 | . 3 . . . 1 . 2 5 . Extermination . | . . . . . . . . . . Reinforcement 6 | . 2 . . . 2 . 2 . . Assault . | . . . . . . . . . . Garrison 5 | . . . . . 2 . . 3 . Intercept . | . . . . . . . . . . Searches Triggered . | . . . . . . . . . . Construction Impeded 1 | . . . . . 1 . . . . Haulers Reinforced . | . . . . . . . . . . Active Scanning Responses . | . . . . . . . . . . Cargo Convoy Interrupts . | . . . . . . . . . . Stealth | -11 -10 -10 -10 -9 -8 -8 -8 -8 -8 --------- Run | Yrd Mat Min Exi Min Mat Gar Mat Sto Gar Distress Signals 7 | . . . . . 2 . 4 1 . Communications Jammed . | . . . . . . . . . . Distress Signals . | . . . . . . . . . . Times Spotted 196 | . 27 5 . . 38 35 33 35 23 Peak Tracking Total 9 | . 8 2 . . 6 9 4 6 9 Tactical Retreats 12 | . 2 . . . 6 . 1 . 3 Traps | -11 -10 -10 -10 -9 -8 -8 -8 -8 -8 ------- Run | Yrd Mat Min Exi Min Mat Gar Mat Sto Gar Traps Triggered 28 | . 1 2 . . . 13 1 1 10 Indirectly . | . . . . . . . . . . Trap Hack Attempts . | . . . . . . . . . . Triggered . | . . . . . . . . . . Disarmed . | . . . . . . . . . . Reprogrammed . | . . . . . . . . . . Reused . | . . . . . . . . . . Traps Extracted . | . . . . . . . . . . Installed 1 | . . . . . . . . . 1 Triggered . | . . . . . . . . . . Most Traps Carried 8 | . . . . . . 6 6 6 8 Machines | -11 -10 -10 -10 -9 -8 -8 -8 -8 -8 ---------- Run | Yrd Mat Min Exi Min Mat Gar Mat Sto Gar Machines Disabled 43 | . 7 . . . 5 15 6 4 6 Max in Single Turn 2 | . 2 . . . 1 1 2 1 1 Garrison Relay 9 | . . . . . . 7 . . 2 Machines Repaired . | . . . . . . . . . . Machines Dismantled . | . . . . . . . . . . Machines Sabotaged . | . . . . . . . . . . Overloaded Fab Kills . | . . . . . . . . . . Hacking | -11 -10 -10 -10 -9 -8 -8 -8 -8 -8 --------- Run | Yrd Mat Min Exi Min Mat Gar Mat Sto Gar Machines Accessed 37 | . 7 1 2 . 6 3 7 11 . Terminals 23 | . 5 . . . 3 3 5 7 . Fabricators . | . . . . . . . . . . Repair Stations 2 | . . . . . . . 1 1 . Recycling Units 5 | . 2 . . . 1 . . 2 . Scanalyzers 2 | . . . . . 1 . 1 . . Garrison Access 2 | . . . . . 1 . . 1 . Total Hacks 110 | . 22 1 2 . 27 9 16 33 . Successful 59 | . 14 1 2 . 15 1 5 21 . Failed 51 | . 8 . . . 12 8 11 12 . Catastrophic 5 | . . . . . 1 1 1 2 . Database Lockouts . | . . . . . . . . . . Manual 44 | . 18 . 1 . 7 1 5 12 . Terminals 76 | . 19 . . . 10 9 12 26 . Fabricators . | . . . . . . . . . . Repair Stations 4 | . . . . . . . 2 2 . Recycling Units 9 | . 3 . . . 2 . . 4 . Scanalyzers 14 | . . . . . 12 . 2 . . Garrison Access 4 | . . . . . 3 . . 1 . Terminal Hacks 27 | . 6 1 2 . 3 1 2 12 . Record 1 | . . . 1 . . . . . . Part Schematic 2 | . 1 . . . 1 . . . . Robot Schematic 1 | . 1 . . . . . . . . Robot Analysis 3 | . 3 . . . . . . . . Prototype ID Bank 3 | . . . . . . . . 3 . Open Door 2 | . . 1 . . . 1 . . . Emergency Access Points 2 | . . . . . 1 . . 1 . Terminal Index 1 | . 1 . . . . . . . . Alert Level 3 | . . . . . . . 1 2 . Unreport Threat 3 | . . . . . . . . 3 . Locate Traps 3 | . . . . . 1 . . 2 . Hauler Manifests 1 | . . . . . . . . 1 . Registered Components 1 | . . . . . . . 1 . . Proto ID Catalog 1 | . . . 1 . . . . . . Fabricator Hacks . | . . . . . . . . . . Repair Station Hacks 4 | . . . . . . . 2 2 . Scan Component 2 | . . . . . . . 1 1 . Repair 2 | . . . . . . . 1 1 . Recycling Unit Hacks 3 | . 1 . . . . . . 2 . Retrieve Components 3 | . 1 . . . . . . 2 . Scanalyzer 10 | . . . . . 10 . . . . Insert Component 1 | . . . . . 1 . . . . Analyze 2 | . . . . . 2 . . . . Retrieve Study 7 | . . . . . 7 . . . . Garrison Access Hacks 2 | . . . . . 1 . . 1 . Unlock Access 2 | . . . . . 1 . . 1 . Unauthorized Hacks 13 | . 7 . . . 1 . 1 4 . Terminals 8 | . 5 . . . . . 1 2 . Assimilate 1 | . . . . . . . 1 . . Botnet 2 | . 1 . . . . . . 1 . Skim 5 | . 4 . . . . . . 1 . Fabricators . | . . . . . . . . . . Repair Stations . | . . . . . . . . . . Recycling Units 5 | . 2 . . . 1 . . 2 . Tunnel 5 | . 2 . . . 1 . . 2 . Scanalyzers . | . . . . . . . . . . Garrison Access . | . . . . . . . . . . Data Cores Recovered 1 | . . . . . 1 . . . . Used . | . . . . . . . . . . Hacking Detections 28 | . 5 . . . 6 3 7 7 . Full Trace Events 3 | . . . . . . 1 1 1 . Feedback Events . | . . . . . . . . . . Feedback Blocked . | . . . . . . . . . . Robot Schematics Acquired 1 | . 1 . . . . . . . . Robots Built . | . . . . . . . . . . Authchips . | . . . . . . . . . . Time . | . . . . . . . . . . Total Robot Build Rating . | . . . . . . . . . . Part Schematics Acquired 3 | . 1 . . . 2 . . . . Parts Built . | . . . . . . . . . . Authchips . | . . . . . . . . . . Time . | . . . . . . . . . . Total Part Build Rating . | . . . . . . . . . . Part Studies Acquired 7 | . . . . . 7 . . . . Parts Repaired 2 | . . . . . . . 1 1 . Time 88 | . . . . . . . 38 50 . Parts Recycled . | . . . . . . . . . . Recycled Matter . | . . . . . . . . . . Retrieved Matter . | . . . . . . . . . . Retrieved Components 28 | . 9 . . . . . . 19 . Parts Scanalyzed 1 | . . . . . 1 . . . . Part Schematics Acquired 1 | . . . . . 1 . . . . Parts Damaged . | . . . . . . . . . . Bothacking | -11 -10 -10 -10 -9 -8 -8 -8 -8 -8 ------------ Run | Yrd Mat Min Exi Min Mat Gar Mat Sto Gar Used RIF Installer . | . . . . . . . . . . Robots Hacked . | . . . . . . . . . . Non-combat . | . . . . . . . . . . Combat . | . . . . . . . . . . Robot Hacks Applied . | . . . . . . . . . . Relay Couplers Released 37 | . . . . . . 29 . . 8 Machine Destruction 34 | . . . . . . 26 . . 8 Programmers 3 | . . . . . . 3 . . . Fabnet Peak Effective % . | . . . . . . . . . . Robots Rewired 3 | . . . . . . . . . 3 Allies Hacked . | . . . . . . . . . . Hacks Repelled . | . . . . . . . . . . Allies | -11 -10 -10 -10 -9 -8 -8 -8 -8 -8 -------- Run | Yrd Mat Min Exi Min Mat Gar Mat Sto Gar Total Allies 8 | . . 3 . 1 . 1 . . 3 Largest Group 3 | . . 3 1 2 2 1 . . 3 Highest-Rated Group 63 | . . 40 16 47 47 25 . . 63 Highest-Rated Ally 31 | . . 16 16 31 31 25 . . 21 Initial Warlord ECA Mod 11 | . . . . . . . 11 11 11 Total Orders 4 | . . 4 . . . . . . . STAY 2 | . . 2 . . . . . . . FOLLOW 2 | . . 2 . . . . . . . Ally Attacks 65 | . . 50 . . 6 1 . . 8 Total Damage 767 | . . 455 . . 63 44 . . 205 Kills 10 | . . 7 . . . 1 . . 2 Allies Corrupted . | . . . . . . . . . . Allies Melted . | . . . . . . . . . . Intel | -11 -10 -10 -10 -9 -8 -8 -8 -8 -8 ------- Run | Yrd Mat Min Exi Min Mat Gar Mat Sto Gar Active Infowar (turns) 4513 | 22 1126 1042 344 118 358 182 . 1315 6 Sensors 1317 | . . . . . . . . 1315 2 IFF 186 | . . . . . . 182 . . 4 Seismic 3010 | 22 1126 1042 344 118 358 . . . . Robot Analysis Total 3 | . 3 . . . . . . . . Derelict Logs Recovered 1 | . . 1 . . . . . . . Drone Launches . | . . . . . . . . . . Drone Recoveries . | . . . . . . . . . . Exploration | -11 -10 -10 -10 -9 -8 -8 -8 -8 -8 ------------- Run | Yrd Mat Min Exi Min Mat Gar Mat Sto Gar Turns Passed 9796 | 86 1174 1066 344 118 1026 2362 1153 1445 1022 Spaces Moved 5455 | 60 674 637 240 67 518 1343 584 886 446 Core 3 | 3 . . . . . . . . . Treads 12 | . 11 . . . 1 . . . . Legs . | . . . . . . . . . . Wheels 5440 | 57 663 637 240 67 517 1343 584 886 446 Hover . | . . . . . . . . . . Flight . | . . . . . . . . . . Fastest Speed 50 | 50 90 140 140 135 135 115 115 100 115 Average Speed 134 | 89 139 140 140 138 140 136 128 117 146 Slowest Speed 480 | 100 320 140 140 140 480 250 160 205 175 Overloaded Moves . | . . . . . . . . . . Propulsion Burnouts . | . . . . . . . . . . Robots Hopped . | . . . . . . . . . . Potential Cave-ins . | . . . . . . . . . . Cave-ins Triggered . | . . . . . . . . . . Exploration Rate (%) 62 | 2 98 99 61 15 51 90 66 97 44 Regions Visited 9 Branch Regions 4 Pre-discovered Areas 6 | . 2 . 1 . 1 . . 2 . Known Exits Taken 3 | . . . . . 1 . 1 1 . Unknown Exits Taken 5 | 1 1 1 1 1 . . . . . Scrap Searched 1 | . . 1 . . . . . . . Spaces Dug 58 | . 3 2 . . 28 12 13 . . Terrain Destroyed 263 | . 63 10 . . 85 41 64 . . Melee . | . . . . . . . . . . Projectile 77 | . . 3 . . 41 13 20 . . AOE 186 | . 63 7 . . 44 28 44 . . Terrain Rammed . | . . . . . . . . . . Walls Destroyed . | . . . . . . . . . . Machines Disabled . | . . . . . . . . . . Actions | -11 -10 -10 -10 -9 -8 -8 -8 -8 -8 --------- Run | Yrd Mat Min Exi Min Mat Gar Mat Sto Gar Total 7099 | 78 809 761 250 90 687 1672 860 1184 708 Wait 672 | . 40 88 . 21 41 37 195 195 55 Move 5448 | 59 673 636 239 66 518 1342 583 886 446 Hop . | . . . . . . . . . . Pick Up 77 | 7 11 9 6 . 16 14 3 7 4 Fast Attach 51 | 7 5 1 . 1 5 8 4 15 5 Attach 24 | . 3 . 1 . 4 8 1 2 5 Detach 3 | . . . . . . 2 1 . . Swap 84 | . 18 9 . . 11 21 7 9 9 Drop 74 | . 6 . 4 1 17 15 6 16 9 Fire 460 | 5 53 18 . 1 75 136 60 54 58 Melee . | . . . . . . . . . . Ram . | . . . . . . . . . . Kick . | . . . . . . . . . . Crush . | . . . . . . . . . . Escape Stasis 168 | . . . . . . 88 . . 80 Rewire 37 | . . . . . . 1 . . 36 Trap 1 | . . . . . . . . . 1 Miscellaneous . | . . . . . . . . . . Route ------- -11/Scrapyard -10/Materials (discovered 4 exits: [*Mat x3] / *Min) -10/Mines (discovered 4 exits: [*Mat x2] / *Exi / [*Sub]) -10/Exiles -9/Mines -8/Materials (discovered 5 exits: *Fac x3 / Sto / Gar) -8/Garrison (discovered 3 exits: *Mat x3) -8/Materials (discovered 2 exits: *Fac / *Sto) -8/Storage (discovered 3 exits: *Fac / *Rec / Gar) -8/Garrison (discovered 1 exit: *Rec) History --------- Turn | Location | Event 13 | -11/Scrapyard | Discovered new exit (range 15) 87 | -11/Scrapyard | Entered Materials 249 | -10/Materials | Destroyed 7 combat bots 283 | -10/Materials | Lost 5 parts (1p2n2w) 317 | -10/Materials | Build established: Mutant 425 | -10/Materials | Discovered new exit (range 7) 551 | -10/Materials | Discovered new exit (range 7) 611 | -10/Materials | Core integrity fell below 50% 636 | -10/Materials | Build established: Scavenger-Mutant 883 | -10/Materials | Discovered new exit (range 12) 1156 | -10/Materials | Discovered new exit (range 13) 1261 | -10/Materials | Entered Mines 1270 | -10/Mines | Assisted by bots powering up and referring to "LRC-V3" 1361 | -10/Mines | Discovered new exit (range 5) 1449 | -10/Mines | Discovered new exit (range 9) 1649 | -10/Mines | Received a Rocket Launcher from a helpful Derelict 1707 | -10/Mines | Learned 2 Materials zone layouts 1765 | -10/Mines | Excavation squad dispatched 1765 | -10/Mines | A large section of the Mines collapsed 1833 | -10/Mines | Deemed a non-threat by the Exiles lab entrance 1867 | -10/Mines | Discovered new exit (range 10) 2023 | -10/Mines | Met a Derelict who couldn't figure out how to use a Trap Extractor 2316 | -10/Mines | Discovered new exit (range 5) 2327 | -10/Mines | Entered Exiles 2327 | -10/Exiles | Accompanied by 1 ally 2367 | -10/Exiles | Met 8R-AWN 2388 | -10/Exiles | Met EX-HEX 2435 | -10/Exiles | Met EX-BIN 2452 | -10/Exiles | Aligned with FarCom system 2453 | -10/Exiles | Given EX-Vault access code 2511 | -10/Exiles | Opened EX-Vault 2519 | -10/Exiles | Found Firepult 2522 | -10/Exiles | Found Modified TNC 2527 | -10/Exiles | Found 0b10 Alert Chip 2553 | -10/Exiles | Warned to stay clear of 0b10 Research branches 2602 | -10/Exiles | Met EX-DEC 2616 | -10/Exiles | Learned location of Zion (-7) 2656 | -10/Exiles | Discovered new exit (range 14) 2671 | -10/Exiles | Stole three prototypes: Modified TNC, 0b10 Alert Chip, Firepult 2671 | -10/Exiles | Entered Mines 2671 | -9/Mines | Accompanied by 1 ally 2693 | -9/Mines | Received a Mining Laser from a helpful Derelict 2749 | -9/Mines | Discovered new exit (range 12) 2789 | -9/Mines | Entered Materials 2789 | -8/Materials | Accompanied by 2 allies 2789 | -8/Materials | Evolved 4 slots: Propulsion x1, Utility x2, Weapon x1 2790 | -8/Materials | Identified exit to Factory 2790 | -8/Materials | Identified exit to Storage 3317 | -8/Materials | Discovered exit to Factory (range 3) 3448 | -8/Materials | Build established: Tank 3635 | -8/Materials | Garrison activated, responded to threat 3690 | -8/Materials | Discovered exit to Factory (range 15) 3811 | -8/Materials | Identified exit to Garrison 3815 | -8/Materials | Entered Garrison 3872 | -8/Garrison | Triggered checkpoint 3949 | -8/Garrison | Lost 5 parts (2n1u2w) 4020 | -8/Garrison | Garrison Relay disabled 4023 | -8/Garrison | Garrison Relay disabled 4284 | -8/Garrison | Rescued a captive Derelict 4384 | -8/Garrison | Triggered checkpoint 4388 | -8/Garrison | Build established: Scavenger-Skirmisher 4413 | -8/Garrison | Triggered checkpoint 4434 | -8/Garrison | Core integrity fell below 50% 4443 | -8/Garrison | Destroyed 8 combat bots 4568 | -8/Garrison | Discovered new exit (range 10) 4613 | -8/Garrison | Triggered checkpoint 4673 | -8/Garrison | Garrison Relay disabled 4807 | -8/Garrison | Triggered checkpoint 4865 | -8/Garrison | Discovered new exit (range 9) 4917 | -8/Garrison | Triggered checkpoint 4963 | -8/Garrison | Garrison Relay disabled 5132 | -8/Garrison | Discovered new exit (range 13) 5162 | -8/Garrison | Triggered checkpoint 5246 | -8/Garrison | Triggered checkpoint 5279 | -8/Garrison | Garrison Relay disabled 6140 | -8/Garrison | Garrison Relay disabled 6177 | -8/Garrison | Entered Materials 6301 | -8/Materials | Repaired Hrd. Medium Armor Plating 6328 | -8/Materials | Discovered exit to Storage (range 15) 6721 | -8/Materials | Build established: Trapper-Skirmisher 7193 | -8/Materials | Discovered exit to Factory (range 3) 7217 | -8/Materials | Build established: Scavenger-Skirmisher 7330 | -8/Materials | Entered Storage 7332 | -8/Storage | FarCom data flow suspended 7547 | -8/Storage | Met 01-MTF 8098 | -8/Storage | Found Prototype Protection 8099 | -8/Storage | Identified Lgt. Regenerative Plating 8198 | -8/Storage | Repaired Adv. Heat Sink 8279 | -8/Storage | Discovered exit to Factory (range 16) 8333 | -8/Storage | Garrison activated, responded to threat 8583 | -8/Storage | Discovered new exit (range 3) 8584 | -8/Storage | Identified exit to Recycling 8602 | -8/Storage | Build established: Trapper-Skirmisher 8744 | -8/Storage | Murdered 01-MTF 8775 | -8/Storage | Identified exit to Garrison 8775 | -8/Storage | Entered Garrison 8877 | -8/Garrison | Triggered checkpoint 8926 | -8/Garrison | Garrison Relay disabled 9018 | -8/Garrison | Core integrity fell below 20% 9045 | -8/Garrison | Lost 3 parts (3n) 9155 | -8/Garrison | Triggered checkpoint 9184 | -8/Garrison | Triggered checkpoint 9239 | -8/Garrison | Garrison Relay disabled 9283 | -8/Garrison | Triggered checkpoint 9403 | -8/Garrison | Build established: Trapper-Tank 9453 | -8/Garrison | Discovered exit to Recycling (range 13) 9629 | -8/Garrison | Triggered checkpoint 9793 | -8/Garrison | Triggered checkpoint 9797 | -8/Garrison | Destroyed by G-50 Soldier with Heavy Laser Last Messages --------------- 09695_ Attempting to rewire H-55 Commando. 09700_ H-55 Commando rewired. 09701_ Attempting to rewire H-55 Commando. 09729_ H-55 Commando rewired. 09736_ RIRXCTUQN3UDJ8#IM3F8 1 09752_ Slug penetrates Y-45 Defender. 09756_ Commando 3a destroyed. 09759_ System corrupted: Matter fused (-6). 09763_ Acquired 15 matter. 09766_ Dropped Hpw. Shotgun. 09767_ Acquired Gauss Rifle. 09771_ Acquired 10 matter. 09772_ Slug penetrates Y-45 Defender. 09793_ Beams of light sweep through the air. An alarm sounds. 09797_ ,5MEDVUMC4CSE|NDXL0YHG4 Map ----- +----------------------------------------------------+ | ?????????????????????????????????????????????????? | | ?????????????????????????????????????????????????? | | ?????????????????????????????????????????????????? | | ?????????????????????????????????????????????????? | | ?????????????????????????????????????????????????? | | ?????????????????????????????????????????????????? | | ?????????????????????????????????????????????????? | | ????????????????????????? ???????????????????????? | | ????????????????????????? ???????????????????????? | | ????????????????????????? ???????????????????????? | | ????????????????????????? ???????????????????????? | | ????????????????????????? ???????????????????????? | | ????????????????????????? ???????????????????????? | | ????????????????????????? ???????????????????????? | | ????????????????????????# #??????????????????????? | | ????????????????????????# #??????????????????????? | | ???????????????????????? #????####??????????????? | | ???????????????????????? #????# #??????????????? | | ???????????????????????? g#????# #??????????????? | | ????????????????????????#g#????# #??????????????? | | ????????????????????????#*#????# ##??????????????? | | ????????????????????????#g###### #???????????????? | | ????????????????????????#!=%= %[!#???????????????? | | ????????????????????????#!#[####[#???????????????? | | ????????????????????????#=###??# #???????????????? | | ????????????????????????#@#????# #???????????????? | | ??????????????????????? #????# #???????? ?????? | | ??????????????????????########## #####???# ?????? | | ????????????????????????# #???# ?????? | | ????????????????????????# ###### ### #???# ?????? | | ???????????????????????????????# #???????# ?????? | | ???????????????????????????????# #???????# ?????? | | ??????????????????????????????##"###""""## ##???? | | ??????????????????# ########## #???? | | ???????????????? ??? | | ??????????????????# ??? | | ???????????????????############ ## ## #???? | | ????????????????????????????### ## ## ###?? | | ????????????????????????????# #?? | | ????????????????????????????# #?? | | ????????????????????????????# #?? | | ????????????????????????????# #?? | | ????????????????????????????### ## ##^= ###?? | | ????????????????????###########* ## ## ^ ##### | | ????????????????????# ! % %[=! * | | ????????????????????# !=! [ |* = | | ????????????????????# ##"##### ###"# | | ????????????????????# ##!#???## ## ## ##?#[# | | ????????????????????# ## #????# ## ## #??#=# | | ????????????????????# ## #????# ######## #??#%! | +----------------------------------------------------+ Best States ------------- Heat Dissipation 72 Energy Generation 18 Energy Capacity 280 Matter Stores 300 Matter Capacity 300 Sight Range 16 Robot Scan Range 15 Terrain Scan Density 10 Base Temperature (-) 100 Armor Coverage 450 Resistance: KI 20 Evasion (%) 42 Recoil Reduction 2 Trap Extractor Capacity 6 Item Schematics ----------------- Hcp. Storage Unit | -10/Materials | Hacked Cryofiber Web | -8/Materials | Scanalyzed Hacking Suite | -8/Materials | Hacked Robot Schematics ------------------ M-13 Machinist | -10/Materials | Hacked Fabricated ------------ Nothing Repaired ---------- Hrd. Medium Armor Plating | 61% | -8/Materials Adv. Heat Sink | 20% | -8/Storage Studied --------- Wheel | -8/Materials | Hacked Com. Wheel | -8/Materials | Hacked Missile Launcher | -8/Materials | Hacked Titanium Leg | -8/Materials | Hacked Carbon-fiber Leg | -8/Materials | Hacked Lgt. Cannon | -8/Materials | Hacked Flak Cannon | -8/Materials | Hacked Alien Tech Used ----------------- None Achievements -------------- Morally Flexible Challenges ------------ None Game ------ Seed ActiveAssaultInterrupter Manual? 0 Play Time 01:23:13 Cumulative 748.3 hours Start 2026.04.26 @ 02:25:24 End 2026.04.26 @ 03:46:22 Sessions 1 Manual Loads 0 Difficulty Rogue Special Mode None Game No. 222 Rogue 222 Adventurer 0 Explorer 0 Win Type - Total 28 Types 10/3/7/1/1/0/2/1/1/2 Lore% 95 Gallery% 87 Achievement% 81 Wizard Run 0 Options --------- Layout 1 ASCII 0 Keyboard 0 Movement Mouse Keybinds 0 Fullscreen 2 Font 32/SmallcapsGlow Map View 50x35 Zoom Use 0% Tactical HUD 1 Map Filters NONE Filters NONE Steam 1 RUN: d6b19918-d288-4c3f-a4a5-fee6d8869104